Cogmind - Beta 16 @@@ ROGUE MODE // 2025.11.18 @ 11:10:11 Player: Mozco Result: Self-destructed Performance ------------- Evolutions (8) 4000 Regions Visited (21) 4200 Robots Destroyed (248) 1240 Value Destroyed (11000) 11000 Prototype IDs (56) 1120 Alien Tech Used (0) 0 Bonus (6961) 6961 TOTAL SCORE: 28521 Bonus ------- High Alert Combat Kills 741 Follower Combat Kills 2318 Network Hubs Disabled 400 Aligned with FarCom 300 Met Data Miner 300 Built Enhanced Grunts 300 A7 Reached Mainframe 300 Met R17 at Cetus 500 Met R17 at Research 2000 Friendly Fire -198 Cogmind --------- Core Integrity 414/1450 Matter 51/800 Energy 1690/1690 System Corruption 50% Temperature Cool (0) Movement Walking (120) Location -2/Research Parts ------- > --- POWER (2) -------- Light Quantum Reactor > --- PROPULSION (6) --- Myomer Leg Myomer Leg Myomer Leg Myomer Leg > --- UTILITY (11) ----- High-capacity Storage Unit Superbattery Experimental Matter Compressor Experimental Signal Interpreter Experimental Signal Interpreter Faulty Experimental Target Analyzer Core Analyzer Advanced Weapon Cycler Improved Dynamic Insulation System > --- WEAPON (4) ------- Gamma Rifle Tesla Bomb Launcher > --- INVENTORY (20) --- Myomer Leg Myomer Leg Myomer Leg Faulty Experimental Biometal Leg Advanced Thermal Generator Advanced Thermal Generator Experimental Matter Compressor (0) Experimental Sensor Array Damper Plating Advanced Recalibrator Drone Bay (2/2) Heavy Tesla Rifle Heavy Tesla Rifle Phase Gun AWS/Thermal Tiamat Missile Launcher Peak State ------------ > --- POWER ------------ Particle Reactor Quantum Reactor > --- PROPULSION ------- Enhanced Flexi-carbon Leg Myomer Leg Shield Leg Advanced Myomer Leg Centrium Leg Experimental Biometal Leg > --- UTILITY ---------- Advanced Thermal Generator Advanced Cooling System High-capacity Storage Unit Experimental Sensor Array Advanced Signal Interpreter Core Analyzer Centrium Medium Armor Plating Experimental Thermal Shield Improved Force Field Improved Dynamic Insulation System Improved System Guard > --- WEAPON ----------- Heavy Gatling Laser Advanced Variable Charge Gun AWS/Thermal > --- INVENTORY -------- Particle Reactor Quantum Reactor Superbattery Advanced Weapon Cycler Centrium Medium Armor Plating Centrium Medium Armor Plating Damper Plating Improved Focal Shield Advanced Shield Generator Advanced Recalibrator Quantum Rifle Enhanced Nova Cannon Enhanced Nova Cannon Enhanced Hardcell Cannon Tesla Bomb Launcher Tesla Bomb Launcher [Rating: 180] Favorites ----------- Power Improved Deuterium Engine Engine Improved Deuterium Engine Power Core Neutrino Core Reactor Quantum Reactor Propulsion Aluminum Leg Leg Aluminum Leg Flight Unit Cooled Field Propulsion Drive Utility High-capacity Storage Unit Device Experimental Sensor Array Storage High-capacity Storage Unit Processor Advanced Targeting Computer Hackware Hacking Suite Protection Improved Medium Armor Plating Weapon Cooled Particle Cannon Energy Gun Cooled Plasma Rifle Energy Cannon Cooled Particle Cannon Ballistic Gun Assault Rifle Launcher Rocket Launcher Impact Weapon Gravity Flail Slashing Weapon Ripper Piercing Weapon Kinetic Spear Build | -11 -10 -10 -10 -9 -8 -7 -7 -7 -7 -6 -6 -5 -5 -5 -5 -5 -4 -4 -4 -3 -2 ------- Run | Yrd Mat Min Exi Min Mat Fac Low Low Dat Pro Fac Fac Ext Cet Arc Hub Fac Was Fac Res Res Slots Evolved 16 | . . . . . 4 2 . . . . 2 2 . . . . 2 . . 2 2 Power 1 | . . . . . . . . . . . . 1 . . . . . . . . . Propulsion 4 | . . . . . 1 1 . . . . . . . . . . 1 . . . 1 Utility 9 | . . . . . 3 1 . . . . 2 1 . . . . . . . 2 . Weapon 2 | . . . . . . . . . . . . . . . . . 1 . . . 1 Parts Attached 212 | 5 16 2 . . 10 27 5 4 . 14 12 16 9 13 8 10 9 2 5 5 40 Power 29 | . 3 . . . 1 3 2 1 . 3 . 1 3 2 2 . . . . 1 7 Engine 10 | . 3 . . . 1 1 2 . . 2 . . 1 . . . . . . . . Core 7 | . . . . . . 2 . 1 . 1 . 1 2 . . . . . . . . Reactor 12 | . . . . . . . . . . . . . . 2 2 . . . . 1 7 Propulsion 57 | 2 5 1 . . 2 12 . . . 6 2 4 1 1 . 4 5 1 . 1 10 Treads . | . . . . . . . . . . . . . . . . . . . . . . Leg 56 | 2 5 1 . . 2 12 . . . 5 2 4 1 1 . 4 5 1 . 1 10 Wheel . | . . . . . . . . . . . . . . . . . . . . . . Hover . | . . . . . . . . . . . . . . . . . . . . . . Flight 1 | . . . . . . . . . . 1 . . . . . . . . . . . Utility 81 | 1 3 . . . 4 9 3 2 . 3 9 7 4 6 5 5 2 1 3 1 13 Device 38 | . 1 . . . 2 4 . 1 . 2 4 3 1 2 3 3 2 . 2 1 7 Storage 9 | 1 2 . . . . 1 . 1 . . . 1 . . . 1 . . . . 2 Processor 12 | . . . . . . 3 . . . . 2 2 . . . . . . 1 . 4 Hackware 5 | . . . . . 1 1 . . . . 1 . . . 1 1 . . . . . Protection 17 | . . . . . 1 . 3 . . 1 2 1 3 4 1 . . 1 . . . Artifact . | . . . . . . . . . . . . . . . . . . . . . . Weapon 45 | 2 5 1 . . 3 3 . 1 . 2 1 4 1 4 1 1 2 . 2 2 10 Energy Gun 20 | 1 1 . . . . 1 . . . 1 . 1 . 3 1 1 2 . . 1 7 Energy Cannon 14 | . 2 . . . 3 2 . . . . 1 1 1 . . . . . 1 1 2 Ballistic Gun 2 | 1 1 . . . . . . . . . . . . . . . . . . . . Ballistic Cannon . | . . . . . . . . . . . . . . . . . . . . . . Launcher 6 | . 1 1 . . . . . . . . . 2 . 1 . . . . . . 1 Special Weapon . | . . . . . . . . . . . . . . . . . . . . . . Impact Weapon 1 | . . . . . . . . . . . . . . . . . . . 1 . . Slashing Weapon 1 | . . . . . . . . 1 . . . . . . . . . . . . . Piercing Weapon 1 | . . . . . . . . . . 1 . . . . . . . . . . . Special Melee Weapon . | . . . . . . . . . . . . . . . . . . . . . . Unidentified Prototypes 31 | . 1 . . . 2 2 . . . 4 . 2 . 2 . 5 4 . 2 . 7 Corrupted Parts 14 | . . . . . . . . . . 1 . . . 4 . 1 . . . . 8 System Corruption 69 | . . . . . . . . . . 8 . . . 20 . 9 . . . . 32 Parts Lost 57 | . 3 . . . . 2 . . . 11 . . . . . . 1 . . . 40 Power 8 | . . . . . . 1 . . . 1 . . . . . . . . . . 6 Propulsion 14 | . 1 . . . . . . . . 4 . . . . . . . . . . 9 Utility 19 | . . . . . . 1 . . . 3 . . . . . . 1 . . . 14 Weapon 16 | . 2 . . . . . . . . 3 . . . . . . . . . . 11 Highest Loss Streak 24 | . 2 . . . . 1 . . . 9 . . . . . . 1 . . . 24 To Critical Strikes . | . . . . . . . . . . . . . . . . . . . . . . Average Backups 14 | 1 9 15 14 11 10 11 15 15 15 13 16 17 16 17 18 18 18 19 17 14 14 Power . | . 1 1 1 1 1 . 1 . . . . . . . 1 1 1 1 1 1 1 Propulsion 1 | . 2 3 2 . . . 3 3 3 1 1 2 2 1 1 1 2 3 2 1 1 Utility 7 | . 1 5 5 5 5 5 7 7 8 7 10 11 10 11 10 10 10 11 9 7 7 Weapon 4 | . 3 6 5 4 4 4 4 3 4 3 5 3 4 4 5 5 4 4 4 4 4 Tool/Special . | . . . . . . . . . . . . . . . . . . . . . . Unused Backups 24 | . 1 . 4 . 2 3 . . . . . 3 1 . 1 1 . . 1 . 7 Power 1 | . . . . . 1 . . . . . . . . . . . . . . . . Propulsion 4 | . 1 . 1 . . . . . . . . . . . . 1 . . . . 1 Utility 10 | . . . 1 . . 3 . . . . . 1 . . 1 . . . 1 . 3 Weapon 9 | . . . 2 . 1 . . . . . . 2 1 . . . . . . . 3 Tool/Special . | . . . . . . . . . . . . . . . . . . . . . . Average Slot Usage (%) 96 | . 94 100 100 100 86 98 100 99 100 94 97 96 99 97 97 97 95 84 92 98 86 Engine 4 | . 11 14 14 14 9 3 . 2 7 6 6 5 3 . . . . . . . . Core 1 | . . . . . . 3 6 4 . . . 2 6 4 . . . . . . . Reactor 2 | . . . . . . . . . . . . . . 6 10 11 10 10 10 9 6 Leg 26 | . 27 28 28 28 20 29 30 30 30 29 26 23 23 23 23 23 26 26 26 23 21 Device 14 | . 5 14 14 14 17 14 17 14 15 15 13 11 5 15 28 17 18 12 21 27 18 Storage 8 | . 21 14 14 14 9 7 7 7 7 7 6 5 5 5 5 5 5 5 5 4 5 Processor 11 | . . . . . . 5 15 15 15 15 22 24 23 16 11 11 10 10 13 14 12 Hackware 1 | . . . . . 8 12 . . . . . . . . . 6 5 2 . . . Protection 5 | . . . . . 3 4 5 7 7 2 7 8 16 10 3 9 3 4 5 4 4 Energy Gun 3 | . 4 . . . . 3 . . . . . 3 5 7 5 8 10 10 8 7 11 Energy Cannon 9 | . 9 21 14 14 17 10 11 14 15 14 13 5 5 . 4 . 4 1 . 3 2 Launcher 2 | . 4 6 14 14 . . 3 . . . . 1 . 2 . . . . . . 1 Peak Build Rating 180 | 5 14 14 17 18 37 58 61 60 52 68 87 101 103 130 126 133 140 138 149 164 180 Average Rating 74 | 4 9 13 13 17 28 48 58 57 52 53 80 92 96 115 116 126 134 135 146 160 156 On Entrance 73 | . 5 14 13 17 18 37 52 53 52 52 68 77 96 103 126 119 128 133 138 148 164 Avg Prop Armor Cover (%) 7 | . . . . . . 6 . . . 10 . . . . . . . . . . 7 Naked Turns . | . . . . . . . . . . . . . . . . . . . . . . Heaviest Build 151 | 9 37 34 34 34 60 72 94 99 76 89 83 113 127 141 120 118 124 146 146 151 144 Greatest Support 158 | 20 20 20 20 20 30 66 66 61 61 75 80 80 80 80 80 106 141 141 141 138 158 Greatest Overweight (x) 19 | . 1 1 1 1 2 1 1 1 1 19 1 1 1 1 1 1 . 1 1 1 2 Average Overweight (x) . | . . 1 1 1 1 . 1 1 1 . . . 1 1 1 . . . . . . Largest Inventory Capacity 20 | 8 15 15 15 15 15 20 20 20 20 20 20 20 20 20 20 20 20 20 20 20 20 Average Capacity 18 | 7 11 15 15 15 15 15 20 20 20 20 20 20 20 20 20 20 20 20 20 20 20 Most Carried 20 | 2 15 15 15 15 15 20 20 20 16 20 20 20 20 20 20 20 20 20 20 20 20 Average Carried 17 | 1 9 15 14 14 14 15 19 19 16 18 19 19 19 19 19 19 19 19 19 18 18 Final Capacity 20 | 8 15 15 15 15 15 20 20 20 20 20 20 20 20 20 20 20 20 20 20 20 20 Final Carried 20 | 2 15 15 15 15 15 19 20 16 16 20 20 20 20 20 20 20 20 20 20 20 20 Class Distribution -------------------- 52% | Mutant 14% | Scavenger-Tank 9% | Commander-Mutant 7% | Scavenger-Mutant 7% | Skirmisher 7% | Hacker-Mutant Dominant Class ---------------- Mutant | -10/Materials Mutant | -10/Mines Mutant | -10/Exiles Mutant | -9/Mines Scavenger-Mutant | -8/Materials Hacker-Mutant | -7/Factory Mutant | -7/Lower Caves Mutant | -7/Lower Caves Mutant | -7/Data Miner Mutant | -6/Proximity Caves Skirmisher | -6/Factory Mutant | -5/Factory Mutant | -5/Extension Commander-Mutant | -5/Cetus Commander-Mutant | -5/Archives Scavenger-Mutant | -5/Hub_04(d) Scavenger-Tank | -4/Factory Scavenger-Tank | -4/Waste Scavenger-Tank | -4/Factory Scavenger-Tank | -3/Research Scavenger-Tank | -2/Research Resources | -11 -10 -10 -10 -9 -8 -7 -7 -7 -7 -6 -6 -5 -5 -5 -5 -5 -4 -4 -4 -3 -2 ----------- Run | Yrd Mat Min Exi Min Mat Fac Low Low Dat Pro Fac Fac Ext Cet Arc Hub Fac Was Fac Res Res Matter Collected 5439 | 194 426 61 . 55 70 445 371 191 . 604 235 284 80 293 150 294 220 104 145 249 968 Remotely . | . . . . . . . . . . . . . . . . . . . . . . Salvage Created 12817 | . 741 78 . 64 45 1053 387 264 . 765 698 1029 209 513 316 890 476 213 251 677 4148 Parts 546 | . 52 15 . 2 1 49 23 16 . 21 28 45 12 18 23 31 12 1 7 27 163 Haulers Intercepted 13 | . 2 . . . . 1 . . . 1 1 3 . . . . . . . 2 3 Recyclers Shooed 13 | . 1 . . . . 3 . . . . 1 . . . . . . . . . 8 Parts Field Recycled . | . . . . . . . . . . . . . . . . . . . . . . Retrieved Matter . | . . . . . . . . . . . . . . . . . . . . . . Parts Self-Destructed 40 | . . . . . . . 18 4 . 18 . . . . . . . . . . . Prevented 8 | . . . . . . . . . . 8 . . . . . . . . . . . Parts Restored 1 | . . . . . . . . . . . . . . . . . . . . . 1 Broken 1 | . . . . . . . . . . . . . . . . . . . . . 1 Kills | -11 -10 -10 -10 -9 -8 -7 -7 -7 -7 -6 -6 -5 -5 -5 -5 -5 -4 -4 -4 -3 -2 ------- Run | Yrd Mat Min Exi Min Mat Fac Low Low Dat Pro Fac Fac Ext Cet Arc Hub Fac Was Fac Res Res Combat Hostiles Destroyed 182 | . 18 3 . 10 1 21 12 6 . 11 10 10 2 6 . 14 6 1 1 6 44 Guns 43 | . 8 . . . . 1 . . . . . 3 1 . . 11 2 1 1 1 14 Cannons 65 | . 3 1 . . 1 16 8 2 . 7 8 6 . . . . 3 . . 2 8 AOE 53 | . 7 2 . 10 . 4 4 4 . 2 . . . . . 1 . . . 1 18 Classes Destroyed 22 | . 7 1 . 2 . 2 1 2 . 3 1 . . . . 1 . 1 . . 1 Worker 14 | . 3 2 . . . . . . . . . . 1 . . 1 . . . 1 6 Builder 5 | . . . . 1 . . . . . . . 1 . . . . . . . . 3 Tunneler 3 | . . 2 . . . . . . . . . . . . . . . . . . 1 Hauler 13 | . 2 . . . . 1 . . . 1 1 3 . . . . . . . 2 3 Recycler 8 | . 1 . . . . 1 . . . . . 1 . . . . . . . . 5 Minesweeper 2 | . . . . . . . . . . 2 . . . . . . . . . . . Mechanic 1 | . . . . . . . . . . . . . . . . . . . . . 1 Operator 11 | . 1 . . . . 1 . . . . . . . . 9 . . . . . . Watcher 18 | . 3 . . . 1 2 . . . . 2 . 1 1 . . 1 . 5 . 2 Swarmer 42 | . 9 3 . . 1 4 5 4 . 3 . . . . . . . . . . 13 Grunt 68 | . 9 . . 1 . 12 4 . . 1 4 2 . . . 12 4 . 1 4 14 Brawler 1 | . . . . . . . . . . . 1 . . . . . . . . . . Duelist 4 | . . . . . . 1 1 . . . . 1 . . . . . . . . 1 Protector 1 | . . . . . . . . . . 1 . . . . . . . . . . . Sentry 9 | . . . . . . . 1 . . 1 1 . 1 . . 1 . . . . 4 Specialist 1 | . . . . . . . . . . 1 . . . . . . . . . . . Hunter 15 | . . . . . . . . 1 . 2 1 5 1 . . . . . . 1 4 Programmer 24 | . . . . . . 4 1 1 . 2 3 2 . . . . 2 . . 1 8 Behemoth 1 | . . . . . . . . . . . . . . . . 1 . . . . . Compactor 1 | . . . . . . . . . . . . . . . . . . 1 . . . Cetus Guard 6 | . . . . . . . . . . . . . . 6 . . . . . . . Samaritan 3 | . . . . . . . . 3 . . . . . . . . . . . . . Assembled 9 | . . . . 9 . . . . . . . . . . . . . . . . . Best Kill Streak 17 | . 6 4 . 10 1 7 4 4 . 3 3 3 2 4 2 5 4 1 2 2 17 Combat Bots Only 12 | . 6 3 . 9 1 7 4 4 . 3 3 3 1 3 . 4 4 1 1 2 12 Max Kills in Single Turn 5 | . 3 3 . 4 1 3 2 2 . 1 1 1 1 2 1 2 1 1 1 1 5 Gunslinging 1 | . . . . . . . . . . . . . . . . 1 . . . . . Exploded 4 | . 3 2 . 4 . 3 2 2 . 1 . . . . . 1 . . . 1 2 Melee . | . . . . . . . . . . . . . . . . . . . . . . Uniques/NPCs Destroyed . | . . . . . . . . . . . . . . . . . . . . . . Combat | -11 -10 -10 -10 -9 -8 -7 -7 -7 -7 -6 -6 -5 -5 -5 -5 -5 -4 -4 -4 -3 -2 -------- Run | Yrd Mat Min Exi Min Mat Fac Low Low Dat Pro Fac Fac Ext Cet Arc Hub Fac Was Fac Res Res Hostile Shots Fired 1308 | . 62 1 . 1 2 133 62 19 . 127 67 48 46 10 8 90 28 . 14 60 530 Missed 403 | . 12 1 . 1 . 46 14 6 . 49 25 13 11 4 4 27 10 . 9 22 149 Hits 905 | . 50 . . . 2 87 48 13 . 78 42 35 35 6 4 63 18 . 5 38 381 Melee 8 | . . . . . . . . 5 . . 1 2 . . . . . . . . . Projectile 897 | . 50 . . . 2 87 48 8 . 78 41 33 35 6 4 63 18 . 5 38 381 AOE 5 | . . . . . . . . . . . . . . . . . . . 3 2 . Critical Strikes 41 | . . . . . . 3 1 . . 2 2 1 1 1 . 4 . . . 2 24 Part Disruptions 2 | . . . . . . 1 . . . . . . . . . . 1 . . . . Actively Blocked 1 | . . . . . . . . . . . . . . . . . 1 . . . . Damage Taken 13995 | . 593 76 . . 33 1282 455 61 . 1049 570 388 354 96 36 537 128 46 141 277 7873 Core 1861 | . 169 . . . . 164 34 . . 182 51 82 52 . 18 37 . . 6 30 1036 Absorbed by Shields 3019 | . . . . . . 91 174 23 . 235 . 200 188 35 38 558 135 47 149 291 855 Redirected to Shielding 30 | . . . . . . . . . . . 30 . . . . . . . . . . Ignored by Resistances 1780 | . . . . . 4 . 44 6 . 20 24 124 155 58 31 381 99 . . 165 669 Regen/Repaired (Parts) 351 | . . . . . . 155 . . . . . . . . . . . 27 . 169 . Core Remaining (%) 81 | 100 . . . 32 100 . . . . 45 94 . . . . 81 . . 99 97 . Volleys Fired 618 | . 81 7 . 5 3 96 25 23 . 56 40 56 16 10 24 25 17 1 3 23 107 Largest 4 | . 2 2 . 1 2 2 2 2 . 2 2 2 2 2 2 2 3 2 1 3 4 Hottest 434 | . 136 136 . 33 136 180 60 180 . 60 120 133 54 225 122 104 222 198 72 300 434 Shots Fired 1204 | . 129 10 . 5 6 165 40 41 1 97 70 97 30 12 46 94 40 23 50 39 209 Gun 522 | . 98 . . . . 32 . . . . . 28 14 1 22 89 23 22 50 19 124 Cannon 591 | . 26 7 . . 6 130 35 34 1 93 70 65 16 3 24 . 17 1 . 13 50 Launcher 91 | . 5 3 . 5 . 3 5 7 . 4 . 4 . 8 . 5 . . . 7 35 Special . | . . . . . . . . . . . . . . . . . . . . . . Kinetic 58 | . 58 . . . . . . . . . . . . . . . . . . . . Thermal 1020 | . 57 7 . . 6 162 35 34 1 93 70 93 30 4 46 89 40 23 50 32 148 Explosive 45 | . 5 3 . 5 . 3 5 7 . 4 . . . . . . . . . . 13 Electromagnetic 81 | . 9 . . . . . . . . . . 4 . 8 . 5 . . . 7 48 Robot Hit Streak 30 | . 8 8 . . 4 22 7 21 . 17 20 14 30 4 6 8 6 14 6 14 9 Robot Miss Streak 6 | . 3 2 . . . 4 1 2 . 6 2 2 2 3 3 3 3 3 4 2 5 Penetration Max . | . . . . . . . . . . . . . . . . . . . . . . Secondary Targets 3 | . . . . . . . . . . . . . . . . 1 . . . . 2 Max Gunslinging Chain 1 | . . . . . . . . . . . . . . . . 1 . . . . 1 Autonomous 139 | . . . . . . . . . . . . . . . . 49 . 20 47 7 16 Shots Hit Robots 739 | . 76 4 . . 4 107 24 19 . 62 46 61 22 4 25 59 27 19 31 25 124 Core Hits 479 | . 36 10 . 22 2 41 22 14 . 27 21 29 11 8 17 30 18 2 16 24 129 Critical Kills 6 | . 1 . . . . . . . . 1 2 1 . . 1 . . . . . . Critical Parts Destroyed 1 | . 1 . . . . . . . . . . . . . . . . . . . . Critical Strikes 15 | . 3 . . . . 1 . . . 1 2 1 3 . 1 2 1 . . . . Burn 8 | . 1 . . . . 1 . . . . . . 3 . . 2 1 . . . . Meltdown 5 | . . . . . . . . . . 1 2 1 . . 1 . . . . . . Destroy 2 | . 2 . . . . . . . . . . . . . . . . . . . . Melee Attacks . | . . . . . . . . . . . . . . . . . . . . . . Impact . | . . . . . . . . . . . . . . . . . . . . . . Slashing . | . . . . . . . . . . . . . . . . . . . . . . Piercing . | . . . . . . . . . . . . . . . . . . . . . . Sneak Attacks . | . . . . . . . . . . . . . . . . . . . . . . Combat Hostiles . | . . . . . . . . . . . . . . . . . . . . . . Follow-up Attacks . | . . . . . . . . . . . . . . . . . . . . . . Damage Inflicted 30568 | . 1388 292 . 654 84 3467 1107 884 . 1889 1381 1789 733 934 1033 2432 788 508 973 1571 8661 Guns 9583 | . 779 . . . . 442 . . . . . 565 370 . 371 1941 436 508 973 546 2652 Cannons 12127 | . 321 89 . . 84 2629 740 590 . 1678 1381 1177 330 65 662 . 352 . . 269 1760 Explosions 8794 | . 285 203 . 650 . 394 367 294 . 209 . 47 . 869 . 491 . . . 756 4229 Melee . | . . . . . . . . . . . . . . . . . . . . . . Ramming 64 | . 3 . . 4 . 2 . . . 2 . . 33 . . . . . . . 20 Kinetic 421 | . 421 . . . . . . . . . . . . . . . . . . . . Thermal 20743 | . 693 89 . . 84 3071 740 590 . 1678 1381 1742 700 65 1033 1941 788 508 973 815 3852 Explosive 3888 | . 184 203 . 650 . 394 367 294 . 209 . . . . . . . . . . 1587 Electromagnetic 5452 | . 87 . . . . . . . . . . 47 . 869 . 491 . . . 756 3202 Impact . | . . . . . . . . . . . . . . . . . . . . . . Slashing . | . . . . . . . . . . . . . . . . . . . . . . Piercing . | . . . . . . . . . . . . . . . . . . . . . . Highest Corruption 50 | . . . . . . 7 8 8 8 20 1 . . 19 13 11 1 7 7 . 50 Average Corruption 8 | . . . . . . 4 7 8 8 12 1 . . 13 9 1 1 6 7 . 17 Corruption Purged 20 | . . . . . . . . . . . . . . 7 13 . . . . . . Corruption Blocked 8 | . . . . . . . . . . . . 3 . 5 . . . . . . . Effects 282 | . . . . . . 40 31 33 7 72 5 . . 20 13 9 1 8 9 . 34 Message Errors 66 | . . . . . . 9 7 9 1 19 2 . . 6 1 . 1 2 1 . 8 Matter Fused 69 | . . . . . . 11 9 9 1 16 1 . . 4 3 3 . 3 3 . 6 Heat Flow Errors 31 | . . . . . . 2 4 4 1 10 . . . 3 . 1 . . 1 . 5 Energy Discharges 34 | . . . . . . 5 3 2 2 6 2 . . 4 2 2 . 1 . . 5 Parts Rejected 5 | . . . . . . 2 . . . 3 . . . . . . . . . . . Parts Fused 2 | . . . . . . . 1 . . . . . . . 1 . . . . . . Data Loss (minor) 31 | . . . . . . 6 3 6 . 8 . . . 1 3 . . 1 3 . . Data Loss (major) 10 | . . . . . . 2 2 1 . . . . . 2 . 1 . . 1 . 1 Misfires 10 | . . . . . . 1 . 2 1 3 . . . . . 1 . 1 . . 1 Alerts 7 | . . . . . . 1 . . 1 2 . . . . 1 . . . . . 2 Misdirections 3 | . . . . . . . . . . . . . . . 1 1 . . . . 1 Weapon Failures 14 | . . . . . . 1 2 . . 5 . . . . 1 . . . . . 5 Overload Shots 24 | . . . . . . 7 . 6 . . 2 4 . 1 . . . . 1 . 3 Effects 2 | . . . . . . 2 . . . . . . . . . . . . . . . Heat Surge 2 | . . . . . . 2 . . . . . . . . . . . . . . . Overflow Damage 676 | . . . . 19 16 41 47 18 . 117 44 82 . 33 34 11 . . . . 214 Projectiles 448 | . . . . . 16 40 . 18 . 99 44 82 . . 34 . . . . . 115 Explosions 228 | . . . . 19 . 1 47 . . 18 . . . 33 . 11 . . . . 99 Melee . | . . . . . . . . . . . . . . . . . . . . . . Knockbacks 1 | . . . . . . . . . . . . . 1 . . . . . . . . Impact 1 | . . . . . . . . . . . . . 1 . . . . . . . . Kinetic . | . . . . . . . . . . . . . . . . . . . . . . Secondary . | . . . . . . . . . . . . . . . . . . . . . . Self-Inflicted Damage 351 | . 62 76 . . . . 19 . . 41 . . . . . . . . . . 153 Shots 11 | . 2 2 . . . . 1 . . 1 . . . . . . . . . . 5 Rammed . | . . . . . . . . . . . . . . . . . . . . . . Targets Rammed 9 | . 1 . . 2 . 1 . . . 1 . . 2 . . . . . . . 2 Kicked 9 | . 1 . . 2 . 1 . . . 1 . . 2 . . . . . . . 2 Crushed . | . . . . . . . . . . . . . . . . . . . . . . Highest Temperature 438 | . 167 75 . . 114 261 264 324 145 198 291 252 140 307 278 255 292 147 242 268 438 Average Temperature 84 | . 48 34 . . 53 54 73 94 67 56 67 63 50 107 100 74 97 15 43 98 152 Received Heat Transfer 2368 | . 162 . . . 9 468 100 . . 98 147 12 52 . 8 208 48 . 10 50 996 Effects 17 | . . . . . . . . 3 . . . . . . . . . . . 1 13 Shutdowns 1 | . . . . . . . . . . . . . . . . . . . . . 1 Energy Bleed 2 | . . . . . . . . . . . . . . . . . . . . 1 1 Interference 12 | . . . . . . . . 3 . . . . . . . . . . . . 9 Matter Decay 1 | . . . . . . . . . . . . . . . . . . . . . 1 Short Circuit 1 | . . . . . . . . . . . . . . . . . . . . . 1 Siege Activations . | . . . . . . . . . . . . . . . . . . . . . . Martial Activations . | . . . . . . . . . . . . . . . . . . . . . . Shielding Activations . | . . . . . . . . . . . . . . . . . . . . . . Robots Disrupted 1 | . . . . . . . . . . . . . . . . . . . . . 1 Combat Hostiles . | . . . . . . . . . . . . . . . . . . . . . . Robots Corrupted 14 | . . . . . . . . . . . . . . 7 . 1 . . . 2 4 Combat Hostiles 12 | . . . . . . . . . . . . . . 6 . 1 . . . 2 3 Parts Fried 27 | . . . . . . . . . . . . . . 3 . 2 . . . 1 21 Impact Corruptions . | . . . . . . . . . . . . . . . . . . . . . . Robots Melted 10 | . . . . . . . . . . 2 2 1 1 . 1 1 1 . . . 1 Combat Hostiles 9 | . . . . . . . . . . 2 2 1 1 . . 1 1 . . . 1 Parts Melted 64 | . 2 1 . . 1 7 . . . 7 4 14 1 . 6 5 5 . 2 3 6 Heat Transferred 28204 | . 1506 148 . . 148 4048 962 705 . 2238 1854 2556 1388 100 1500 2634 1361 679 1184 968 4225 Parts Sabotaged . | . . . . . . . . . . . . . . . . . . . . . . Parts Stolen 4 | . . . . . . . . 4 . . . . . . . . . . . . . Parts Stripped . | . . . . . . . . . . . . . . . . . . . . . . Power Chain Reactions 5 | . 2 . . . . . . . . . . . . . . . . . . . 3 Alert | -11 -10 -10 -10 -9 -8 -7 -7 -7 -7 -6 -6 -5 -5 -5 -5 -5 -4 -4 -4 -3 -2 ------- Run | Yrd Mat Min Exi Min Mat Fac Low Low Dat Pro Fac Fac Ext Cet Arc Hub Fac Was Fac Res Res Maximum Alert Level 3 | . 1 . . . . 1 . . . . 1 . 1 1 . 3 1 . 3 1 3 Low Security (%) 68 | 100 87 100 . 100 100 87 . . . . 52 100 93 38 100 11 . 100 29 . 19 Level 1 22 | . 12 . . . . 12 . . . . 47 . 6 61 . 4 100 . 3 100 40 Level 2 4 | . . . . . . . . . . . . . . . . 48 . . 13 . 32 Level 3 4 | . . . . . . . . . . . . . . . . 35 . . 53 . 7 Level 4 . | . . . . . . . . . . . . . . . . . . . . . . Level 5 . | . . . . . . . . . . . . . . . . . . . . . . High Security . | . . . . . . . . . . . . . . . . . . . . . . Max Security . | . . . . . . . . . . . . . . . . . . . . . . Peak Influence 1010 | . 234 85 . 68 27 368 . . . . 343 167 327 338 178 833 323 132 814 360 1010 Initial 360 | . . 64 . . . . . . . . . 158 53 178 48 . 307 98 58 360 150 Average 170 | . 129 24 . 5 4 84 . . . . 145 74 81 220 101 575 287 93 524 305 397 Influence Increases 9801 | . 661 185 . 93 86 672 300 150 . 345 581 448 758 350 281 1374 198 116 1132 353 1718 Destroy 0b10 Robot/C 4500 | . 360 100 . 40 40 420 240 120 . 200 200 200 360 160 80 540 120 . 300 140 880 Destroy 0b10 Robot/NC 445 | . 50 20 . 5 15 25 . . . 30 15 25 20 10 45 15 5 . 45 15 105 Destroy Leader 864 | . 100 20 . 10 2 86 30 30 . 40 56 66 34 . . 110 22 . 64 34 160 Allied During Kill 1242 | . . 16 . 14 7 . . . . . . . 275 161 112 305 . . 350 2 . Trap Triggered on 0b10 30 | . . . . . . . . . . . 30 . . . . . . . . . . Successful Hack 461 | . 32 . . . 7 45 . . . . 19 92 14 . . 14 41 . 72 101 24 Select Force Hacks 160 | . 60 . . . . . . . . . . . . . . 100 . . . . . Disable Machine 360 | . 30 . . . 15 15 . . . . . 15 15 15 30 30 . . 165 . 30 Anti-Garrison Action 400 | . . . . . . . . . . . 200 . . . . 200 . . . . . Destroy Structure 859 | . 29 29 . 24 . 21 . . . . 16 20 10 4 14 60 10 116 136 16 354 Partial Spotted 15 | . . . . . . . . . . . . . . . . . . . . . 15 Lose Combat Pursuer 465 | . . . . . . 60 30 . . 75 45 30 30 . . . . . . 45 150 Influence Decreases 8791 | . 496 350 . 93 86 317 559 246 . 345 258 661 549 547 400 749 545 313 530 770 977 Entered New Map 1667 | . . 101 . . . . 132 19 . . . 165 57 141 74 3 321 183 26 326 119 Time Decay 5649 | . 466 229 . 93 66 297 427 227 . 333 258 486 369 326 286 266 214 110 334 404 458 Lost Part 472 | . 30 . . . . 20 . . . 12 . . . . . . 10 . . . 400 Lost Ally 680 | . . 20 . . 20 . . . . . . 10 100 80 40 180 . 20 170 40 . Purge Threat 323 | . . . . . . . . . . . . . 23 . . 300 . . . . . Squads Dispatched 61 | . 6 . . . . 10 . . . . 6 8 . . . 8 2 . 6 6 9 Investigation 19 | . 4 . . . . . . . . . 4 2 . . . 6 1 . . 2 . Extermination 14 | . . . . . . 4 . . . . 2 2 . . . 1 1 . 1 . 3 Reinforcement 21 | . 2 . . . . 4 . . . . . 4 . . . 1 . . 1 4 5 Assault 3 | . . . . . . 2 . . . . . . . . . . . . 1 . . Garrison 4 | . . . . . . . . . . . . . . . . . . . 3 . 1 Intercept . | . . . . . . . . . . . . . . . . . . . . . . Searches Triggered . | . . . . . . . . . . . . . . . . . . . . . . Construction Impeded 3 | . . . . . . . . . . . . 1 . . . . . . . . 2 Haulers Reinforced 7 | . . . . . . 1 . . . . . 2 . . . . . . 1 1 2 Active Scanning Responses . | . . . . . . . . . . . . . . . . . . . . . . Cargo Convoy Interrupts . | . . . . . . . . . . . . . . . . . . . . . . Stealth | -11 -10 -10 -10 -9 -8 -7 -7 -7 -7 -6 -6 -5 -5 -5 -5 -5 -4 -4 -4 -3 -2 --------- Run | Yrd Mat Min Exi Min Mat Fac Low Low Dat Pro Fac Fac Ext Cet Arc Hub Fac Was Fac Res Res Distress Signals 18 | . . . . . . 2 . . . 1 . 1 1 2 . 2 1 . 1 6 1 Communications Jammed . | . . . . . . . . . . . . . . . . . . . . . . Distress Signals . | . . . . . . . . . . . . . . . . . . . . . . Times Spotted 360 | . 27 3 . 13 3 43 16 8 . 23 15 16 20 8 19 27 9 5 18 26 61 Peak Tracking Total 13 | . 4 3 . 10 1 6 4 4 . 6 3 4 5 5 2 6 5 2 3 5 13 Tactical Retreats 16 | . . . . . . 4 1 . . 4 1 1 2 . . . . . . 1 2 Traps | -11 -10 -10 -10 -9 -8 -7 -7 -7 -7 -6 -6 -5 -5 -5 -5 -5 -4 -4 -4 -3 -2 ------- Run | Yrd Mat Min Exi Min Mat Fac Low Low Dat Pro Fac Fac Ext Cet Arc Hub Fac Was Fac Res Res Traps Triggered 25 | . 2 . . . . 3 . . . . 3 6 5 . . . 1 . . 1 4 Indirectly 8 | . . . . . . . . . . . . 5 . . . . . . . . 3 Trap Hack Attempts . | . . . . . . . . . . . . . . . . . . . . . . Triggered . | . . . . . . . . . . . . . . . . . . . . . . Disarmed . | . . . . . . . . . . . . . . . . . . . . . . Reprogrammed . | . . . . . . . . . . . . . . . . . . . . . . Reused 7 | . . . . . . . . . . 4 3 . . . . . . . . . . Traps Extracted . | . . . . . . . . . . . . . . . . . . . . . . Installed 10 | . . . . . . . . . . 5 5 . . . . . . . . . . Triggered 7 | . . . . . . . . . . 4 3 . . . . . . . . . . Most Traps Carried 9 | . . . . . . . . . . 9 5 . . . . . . . . . . Machines | -11 -10 -10 -10 -9 -8 -7 -7 -7 -7 -6 -6 -5 -5 -5 -5 -5 -4 -4 -4 -3 -2 ---------- Run | Yrd Mat Min Exi Min Mat Fac Low Low Dat Pro Fac Fac Ext Cet Arc Hub Fac Was Fac Res Res Machines Disabled 27 | . 2 . . . 1 1 . . 1 . . 1 3 1 2 2 . . 11 . 2 Max in Single Turn 1 | . 1 . . . . 1 . . 1 . . 1 . 1 1 1 . . 1 . 1 Garrison Access 5 | . . . . . . 1 . . . . 1 . . . . 1 . . . 1 1 Network Hub 2 | . . . . . . . . . . . . . . . . 2 . . . . . Machines Repaired . | . . . . . . . . . . . . . . . . . . . . . . Machines Dismantled . | . . . . . . . . . . . . . . . . . . . . . . Machines Sabotaged 2 | . . . . . . . . . . . . . . . . 2 . . . . . Overloaded Fab Kills . | . . . . . . . . . . . . . . . . . . . . . . Hacking | -11 -10 -10 -10 -9 -8 -7 -7 -7 -7 -6 -6 -5 -5 -5 -5 -5 -4 -4 -4 -3 -2 --------- Run | Yrd Mat Min Exi Min Mat Fac Low Low Dat Pro Fac Fac Ext Cet Arc Hub Fac Was Fac Res Res Machines Accessed 64 | . 7 1 2 . 1 10 . . 2 . 7 11 2 . . 6 3 . 5 5 2 Terminals 34 | . 5 1 . . 1 5 . . . . 2 7 2 . . 5 1 . 2 2 1 Fabricators 7 | . . . . . . . . . . . 3 1 . . . . . . 3 . . Repair Stations 5 | . . . . . . 3 . . . . . . . . . . . . . 2 . Recycling Units 5 | . 2 . . . . . . . . . 1 1 . . . . 1 . . . . Scanalyzers 5 | . . . . . . 2 . . . . . 1 . . . . 1 . . 1 . Garrison Access 4 | . . . . . . . . . . . 1 1 . . . 1 . . . . 1 Total Hacks 218 | . 30 5 2 . 7 32 . . 8 . 14 27 10 . . 24 22 . 21 11 5 Successful 115 | . 12 3 2 . 4 21 . . 8 . 8 11 6 . . 7 12 . 12 7 2 Failed 103 | . 18 2 . . 3 11 . . . . 6 16 4 . . 17 10 . 9 4 3 Catastrophic 21 | . 1 . . . . 1 . . . . 2 6 1 . . 3 . . 3 2 2 Database Lockouts . | . . . . . . . . . . . . . . . . . . . . . . Manual 117 | . 30 5 1 . 5 4 . . . . 11 18 5 1 . 11 12 . 10 3 1 Terminals 132 | . 25 5 . . 7 16 . . . . 4 18 10 . . 22 9 . 9 5 2 Fabricators 21 | . . . . . . . . . . . 6 3 . . . . . . 12 . . Repair Stations 14 | . . . . . . 11 . . . . . . . . . . . . . 3 . Recycling Units 16 | . 5 . . . . . . . . . 3 2 . . . . 6 . . . . Scanalyzers 18 | . . . . . . 5 . . . . . 3 . . . . 7 . . 3 . Garrison Access 7 | . . . . . . . . . . . 1 1 . . . 2 . . . . 3 Terminal Hacks 46 | . 8 3 2 . 3 10 . . 8 . . 3 4 . . 3 . . 2 . . Record 3 | . . . 1 . . . . . 2 . . . . . . . . . . . . Part Schematic 1 | . 1 . . . . . . . . . . . . . . . . . . . . Robot Schematic 7 | . . . . . . 1 . . 6 . . . . . . . . . . . . Robot Analysis 12 | . 6 3 . . 1 1 . . . . . . 1 . . . . . . . . Prototype ID Bank 1 | . . . . . 1 . . . . . . . . . . . . . . . . Level Access Points 1 | . . . . . . . . . . . . . . . . 1 . . . . . Branch Access Points 2 | . . . . . . 1 . . . . . 1 . . . . . . . . . Emergency Access Points 1 | . . . . . . 1 . . . . . . . . . . . . . . . Terminal Index 1 | . . . . . . . . . . . . 1 . . . . . . . . . Recycling Unit Index 1 | . 1 . . . . . . . . . . . . . . . . . . . . Scanalyzer Index 1 | . . . . . . 1 . . . . . . . . . . . . . . . Alert Level 1 | . . . . . . . . . . . . . 1 . . . . . . . . Unreport Threat 3 | . . . . . . . . . . . . . 1 . . 2 . . . . . Locate Traps 3 | . . . . . 1 1 . . . . . . 1 . . . . . . . . Dispatch Records 1 | . . . . . . 1 . . . . . . . . . . . . . . . Maintenance Status 2 | . . . . . . 1 . . . . . . . . . . . . 1 . . Patrol Status 1 | . . . . . . . . . . . . . . . . . . . 1 . . Hauler Manifests 1 | . . . . . . . . . . . . 1 . . . . . . . . . Zone Layout 2 | . . . . . . 2 . . . . . . . . . . . . . . . Proto ID Catalog 1 | . . . 1 . . . . . . . . . . . . . . . . . . Fabricator Hacks 6 | . . . . . . . . . . . 2 1 . . . . . . 3 . . Network Status 3 | . . . . . . . . . . . 1 1 . . . . . . 1 . . Build 3 | . . . . . . . . . . . 1 . . . . . . . 2 . . Repair Station Hacks 9 | . . . . . . 6 . . . . . . . . . . . . . 3 . Scan Component 6 | . . . . . . 4 . . . . . . . . . . . . . 2 . Repair 3 | . . . . . . 2 . . . . . . . . . . . . . 1 . Recycling Unit Hacks 3 | . 1 . . . . . . . . . . . . . . . 2 . . . . Report Inventory 1 | . . . . . . . . . . . . . . . . . 1 . . . . Retrieve Components 2 | . 1 . . . . . . . . . . . . . . . 1 . . . . Scanalyzer 10 | . . . . . . 2 . . . . . 3 . . . . 3 . . 2 . Insert Component 5 | . . . . . . 1 . . . . . 1 . . . . 2 . . 1 . Analyze 4 | . . . . . . 1 . . . . . 1 . . . . 1 . . 1 . Retrieve Study 1 | . . . . . . . . . . . . 1 . . . . . . . . . Garrison Access Hacks 1 | . . . . . . . . . . . . . . . . . . . . . 1 Seal Access 1 | . . . . . . . . . . . . . . . . . . . . . 1 Unauthorized Hacks 40 | . 3 . . . 1 3 . . . . 6 4 2 . . 4 7 . 7 2 1 Terminals 23 | . 1 . . . 1 3 . . . . 1 2 2 . . 3 4 . 3 2 1 Track 3 | . . . . . . . . . . . . . . . . . 1 . 1 1 . Assimilate 2 | . . . . . . . . . . . . 1 . . . . 1 . . . . Botnet 12 | . 1 . . . 1 3 . . . . 1 1 1 . . . 1 . 1 1 1 Operators 3 | . . . . . . . . . . . . . 1 . . . 1 . 1 . . Sabotage 3 | . . . . . . . . . . . . . . . . 3 . . . . . Fabricators 6 | . . . . . . . . . . . 1 1 . . . . . . 4 . . Report 1 | . . . . . . . . . . . . . . . . . . . 1 . . Prioritize 1 | . . . . . . . . . . . . . . . . . . . 1 . . Fabnet 1 | . . . . . . . . . . . . . . . . . . . 1 . . Haulers 3 | . . . . . . . . . . . 1 1 . . . . . . 1 . . Repair Stations . | . . . . . . . . . . . . . . . . . . . . . . Recycling Units 9 | . 2 . . . . . . . . . 3 1 . . . . 3 . . . . Reject 2 | . . . . . . . . . . . 1 . . . . . 1 . . . . Recyclers 3 | . . . . . . . . . . . 1 1 . . . . 1 . . . . Mask 2 | . . . . . . . . . . . 1 . . . . . 1 . . . . Tunnel 2 | . 2 . . . . . . . . . . . . . . . . . . . . Scanalyzers . | . . . . . . . . . . . . . . . . . . . . . . Garrison Access 2 | . . . . . . . . . . . 1 . . . . 1 . . . . . Jam 2 | . . . . . . . . . . . 1 . . . . 1 . . . . . Data Cores Recovered 1 | . . . . . . . . . . . . . 1 . . . . . . . . Used . | . . . . . . . . . . . . . . . . . . . . . . Hacking Detections 53 | . 6 1 . . 1 10 . . . . 4 11 2 . . 5 2 . 4 5 2 Full Trace Events 12 | . 5 1 . . . . . . . . 1 2 . . . 2 1 . . . . Feedback Events 1 | . . . . . . . . . . . . . . . . 1 . . . . . Corruption 1 | . . . . . . . . . . . . . . . . 1 . . . . . Feedback Blocked . | . . . . . . . . . . . . . . . . . . . . . . Robot Schematics Acquired 7 | . . . . . . 1 . . 6 . . . . . . . . . . . . Robots Built 3 | . . . . . . . . . . . . . . . . . . . 3 . . Authchips . | . . . . . . . . . . . . . . . . . . . . . . Time 187 | . . . . . . . . . . . . . . . . . . . 187 . . Total Robot Build Rating 21 | . . . . . . . . . . . . . . . . . . . 21 . . Part Schematics Acquired 4 | . 1 . . . . . . . . . . 1 . . . . 1 . . 1 . Parts Built 4 | . . . . . . . . . . . 2 . . . . . . . 2 . . Authchips . | . . . . . . . . . . . . . . . . . . . . . . Time 203 | . . . . . . . . . . . 64 . . . . . . . 139 . . Total Part Build Rating 34 | . . . . . . . . . . . 16 . . . . . . . 18 . . Part Studies Acquired 1 | . . . . . . . . . . . . 1 . . . . . . . . . Parts Repaired 3 | . . . . . . 2 . . . . . . . . . . . . . 1 . Time 176 | . . . . . . 102 . . . . . . . . . . . . . 74 . Parts Recycled . | . . . . . . . . . . . . . . . . . . . . . . Recycled Matter . | . . . . . . . . . . . . . . . . . . . . . . Retrieved Matter . | . . . . . . . . . . . . . . . . . . . . . . Retrieved Components 13 | . 10 . . . . . . . . . . . . . . . 3 . . . . Parts Scanalyzed 5 | . . . . . . 1 . . . . . 1 . . . . 2 . . 1 . Part Schematics Acquired 3 | . . . . . . . . . . . . 1 . . . . 1 . . 1 . Parts Damaged 2 | . . . . . . . . . . . . . . . . . 2 . . . . Bothacking | -11 -10 -10 -10 -9 -8 -7 -7 -7 -7 -6 -6 -5 -5 -5 -5 -5 -4 -4 -4 -3 -2 ------------ Run | Yrd Mat Min Exi Min Mat Fac Low Low Dat Pro Fac Fac Ext Cet Arc Hub Fac Was Fac Res Res Used RIF Installer . | . . . . . . . . . . . . . . . . . . . . . . Robots Hacked 3 | . . . . . . . . . . . . . . . . . . . . 3 . Non-combat . | . . . . . . . . . . . . . . . . . . . . . . Combat 3 | . . . . . . . . . . . . . . . . . . . . 3 . Robot Hacks Applied . | . . . . . . . . . . . . . . . . . . . . . . Relay Couplers Released 2 | . . . . . . 1 . . . . . . . . . . . . . 1 . Machine Destruction 2 | . . . . . . 1 . . . . . . . . . . . . . 1 . Fabnet Peak Effective % 3 | . . . . . . . . . . . . . . . . . . . . 3 1 Autooverrided 3 | . . . . . . . . . . . . . . . . . . . . 3 . Robots Rewired 9 | . . . . . . . . . . . . . 9 . . . . . . . . Allies Hacked . | . . . . . . . . . . . . . . . . . . . . . . Hacks Repelled . | . . . . . . . . . . . . . . . . . . . . . . Allies | -11 -10 -10 -10 -9 -8 -7 -7 -7 -7 -6 -6 -5 -5 -5 -5 -5 -4 -4 -4 -3 -2 -------- Run | Yrd Mat Min Exi Min Mat Fac Low Low Dat Pro Fac Fac Ext Cet Arc Hub Fac Was Fac Res Res Total Allies 53 | . . 3 . 2 . . . . . . . 1 18 5 . . . 18 3 3 . Largest Group 18 | . . 3 2 4 3 . . . . . . 1 13 14 14 11 . 18 14 1 . Highest-Rated Group 867 | . . 40 32 75 63 . . . . . . 26 524 867 867 650 . 656 551 47 . Highest-Rated Ally 159 | . . 16 16 31 31 . . . . . . 26 159 159 159 96 . 50 50 47 . Total Orders 5 | . . . . . . . . . . . . . . . 2 . . . 1 . 2 STAY 2 | . . . . . . . . . . . . . . . 1 . . . 1 . . FOLLOW 1 | . . . . . . . . . . . . . . . 1 . . . . . . EXPLORE 2 | . . . . . . . . . . . . . . . . . . . . . 2 Ally Attacks 570 | . . 5 . 8 29 . . . . . . . 102 29 30 96 . 122 141 8 . Total Damage 14973 | . . 48 . 110 269 . . . . . . . 2269 528 796 3253 . 4282 3178 240 . Kills 76 | . . 2 . 4 3 . . . . . . . 18 3 4 16 . 6 19 1 . Allies Corrupted 7 | . . . . . . . . . . . . . . . . 2 . . 5 . . Allies Melted 1 | . . . . . . . . . . . . . . . . 1 . . . . . Intel | -11 -10 -10 -10 -9 -8 -7 -7 -7 -7 -6 -6 -5 -5 -5 -5 -5 -4 -4 -4 -3 -2 ------- Run | Yrd Mat Min Exi Min Mat Fac Low Low Dat Pro Fac Fac Ext Cet Arc Hub Fac Was Fac Res Res Active Infowar (turns) 8238 | . . . . . 40 553 1016 602 . 971 1438 714 . 265 2 168 364 10 722 974 399 Optics 1897 | . . . . . . . . . . . 1360 537 . . . . . . . . . Sensors 7708 | . . . . . 40 434 1016 602 . 971 1107 635 . 265 2 168 364 10 722 974 398 IFF 2 | . . . . . . . . . . . 2 . . . . . . . . . . Seismic 5 | . . . . . . . . . . 2 . . . . . . 2 . . . 1 Machine Analysis 119 | . . . . . . 119 . . . . . . . . . . . . . . . ECM 2 | . . . . . . . . . . . 2 . . . . . . . . . . Robot Analysis Total 12 | . 6 3 . . 1 1 . . . . . . 1 . . . . . . . . Derelict Logs Recovered 5 | . . 1 . 1 . . . 1 . 2 . . . . . . . . . . . Drone Launches 2 | . . . . . . . . . . . . . . . . . . . . . 2 Drone Recoveries 2 | . . . . . . . . . . . . . . . . . . . . . 2 Exploration | -11 -10 -10 -10 -9 -8 -7 -7 -7 -7 -6 -6 -5 -5 -5 -5 -5 -4 -4 -4 -3 -2 ------------- Run | Yrd Mat Min Exi Min Mat Fac Low Low Dat Pro Fac Fac Ext Cet Arc Hub Fac Was Fac Res Res Turns Passed 20897 | 59 1479 954 831 896 494 2274 1153 875 151 1864 1438 1348 1547 724 625 629 440 236 749 974 1157 Spaces Moved 10957 | 44 779 488 434 420 241 1125 554 409 80 1070 932 779 726 342 285 273 275 134 498 561 508 Core 7 | 4 . . . . . . . . . 3 . . . . . . . . . . . Treads . | . . . . . . . . . . . . . . . . . . . . . . Legs 10950 | 40 779 488 434 420 241 1125 554 409 80 1067 932 779 726 342 285 273 275 134 498 561 508 Wheels . | . . . . . . . . . . . . . . . . . . . . . . Hover . | . . . . . . . . . . . . . . . . . . . . . . Flight . | . . . . . . . . . . . . . . . . . . . . . . Fastest Speed 50 | 50 120 190 190 190 190 120 190 190 190 120 120 120 182 182 182 115 116 120 120 124 120 Average Speed 160 | 113 153 190 190 190 192 157 190 190 190 151 133 143 182 182 182 177 118 154 121 152 131 Slowest Speed 1000 | 120 190 190 190 190 260 190 190 190 190 1000 190 190 182 182 182 185 120 190 190 194 260 Overloaded Moves . | . . . . . . . . . . . . . . . . . . . . . . Propulsion Burnouts . | . . . . . . . . . . . . . . . . . . . . . . Robots Hopped . | . . . . . . . . . . . . . . . . . . . . . . Potential Cave-ins . | . . . . . . . . . . . . . . . . . . . . . . Cave-ins Triggered . | . . . . . . . . . . . . . . . . . . . . . . Exploration Rate (%) 50 | 4 86 95 71 81 18 31 52 64 68 82 23 27 85 67 89 26 6 76 16 22 15 Regions Visited 21 Branch Regions 11 Pre-discovered Areas 7 | . 2 1 1 1 . . . . 1 1 . . . . . . . . . . . Known Exits Taken 12 | . . . . . . 1 1 1 . 1 1 1 1 1 1 1 . . 1 1 . Unknown Exits Taken 7 | 1 1 1 1 1 1 . . . 1 . . . . . . . . . . . . Scrap Searched 10 | . . 2 . 1 . . 2 . . 5 . . . . . . . . . . . Spaces Dug 93 | . 7 . . 19 . 6 6 1 . 11 10 4 . . . . . 1 . 3 25 Terrain Destroyed 399 | . 23 31 . 30 . 16 36 40 . 37 15 9 . 1 7 10 5 4 4 7 124 Melee . | . . . . . . . . . . . . . . . . . . . . . . Projectile 112 | . . 1 . . . 13 3 8 . 7 15 9 . 1 7 10 5 4 4 7 18 AOE 287 | . 23 30 . 30 . 3 33 32 . 30 . . . . . . . . . . 106 Terrain Rammed . | . . . . . . . . . . . . . . . . . . . . . . Walls Destroyed . | . . . . . . . . . . . . . . . . . . . . . . Machines Disabled . | . . . . . . . . . . . . . . . . . . . . . . Actions | -11 -10 -10 -10 -9 -8 -7 -7 -7 -7 -6 -6 -5 -5 -5 -5 -5 -4 -4 -4 -3 -2 --------- Run | Yrd Mat Min Exi Min Mat Fac Low Low Dat Pro Fac Fac Ext Cet Arc Hub Fac Was Fac Res Res Total 13331 | 50 936 506 444 512 270 1459 611 470 79 1230 1081 950 935 433 361 381 362 163 639 653 806 Wait 835 | . 33 7 . 84 5 161 12 9 . 15 57 61 33 40 29 37 29 11 106 46 60 Move 10937 | 43 778 487 433 419 240 1124 553 408 79 1069 931 778 725 341 284 272 275 133 497 560 508 Hop . | . . . . . . . . . . . . . . . . . . . . . . Pick Up 150 | 2 16 . 5 1 4 14 4 4 . 20 8 10 4 8 5 7 4 4 7 2 21 Fast Attach 132 | 5 4 . . . 5 6 . 4 . 19 8 4 5 6 5 8 9 2 5 . 37 Attach 74 | . 4 . . . 2 6 . 2 . 10 1 4 1 3 1 4 6 1 4 7 18 Detach 12 | . 1 . . . 1 . . . . 1 1 . . . . . 1 . . 3 4 Swap 196 | . 10 3 . . 3 32 12 10 . 9 12 18 5 11 5 12 9 3 5 11 26 Drop 226 | . 8 2 6 1 7 19 5 10 . 25 18 19 12 14 8 16 12 8 12 1 23 Fire 618 | . 81 7 . 5 3 96 25 23 . 56 40 56 16 10 24 25 17 1 3 23 107 Melee . | . . . . . . . . . . . . . . . . . . . . . . Ram . | . . . . . . . . . . . . . . . . . . . . . . Kick 9 | . 1 . . 2 . 1 . . . 1 . . 2 . . . . . . . 2 Crush . | . . . . . . . . . . . . . . . . . . . . . . Escape Stasis 25 | . . . . . . . . . . . . . 25 . . . . . . . . Rewire 107 | . . . . . . . . . . . . . 107 . . . . . . . . Trap 10 | . . . . . . . . . . 5 5 . . . . . . . . . . Miscellaneous . | . . . . . . . . . . . . . . . . . . . . . . Route ------- -11/Scrapyard -10/Materials (discovered 5 exits: [*Mat x3] / *Min / [*Sub]) -10/Mines (discovered 4 exits: [*Mat x2] / *Exi / [*Sub]) -10/Exiles -9/Mines -8/Materials -7/Factory (discovered 2 exits: *Low x2) -7/Lower Caves -7/Lower Caves (discovered 2 exits: *Fac / *Dat) -7/Data Miner -6/Proximity Caves -6/Factory -5/Factory (discovered 6 exits: *Fac x2 / Upp x2 / *Ext x2) -5/Extension (discovered 2 exits: *Fac / *Cet) -5/Cetus (discovered 2 exits: *Fac / *Arc) -5/Archives (discovered 3 exits: *Fac / *Hub x2) -5/Hub_04(d) (discovered 4 exits: *Fac x4) -4/Factory -4/Waste -4/Factory -3/Research (discovered 2 exits: *Res / *Arm) -2/Research History --------- Turn | Location | Event 10 | -11/Scrapyard | Discovered new exit (range 16) 60 | -11/Scrapyard | Entered Materials 219 | -10/Materials | Discovered new exit (range 11) 306 | -10/Materials | Build established: Mutant 417 | -10/Materials | Discovered new exit (range 16) 478 | -10/Materials | Core integrity fell below 50% 674 | -10/Materials | Discovered new exit (range 12) 712 | -10/Materials | Discovered new exit (range 16) 1043 | -10/Materials | Discovered new exit (range 3) 1539 | -10/Materials | Entered Mines 1595 | -10/Mines | Learned Materials emergency access door positions 1613 | -10/Mines | Learned location of Storage (-8) 1807 | -10/Mines | Assisted by bots powering up and referring to "LRC-V3" 1932 | -10/Mines | Discovered new exit (range 11) 1938 | -10/Mines | Deemed a non-threat by the Exiles lab entrance 1938 | -10/Mines | Discovered new exit (range 5) 2018 | -10/Mines | Discovered new exit (range 10) 2139 | -10/Mines | Received a Rocket Launcher from a helpful Derelict 2224 | -10/Mines | Discovered new exit (range 11) 2493 | -10/Mines | Entered Exiles 2493 | -10/Exiles | Accompanied by 2 allies 2541 | -10/Exiles | Met 8R-AWN 2573 | -10/Exiles | Met EX-HEX 2632 | -10/Exiles | Met EX-BIN 2661 | -10/Exiles | Aligned with FarCom system 2663 | -10/Exiles | Given EX-Vault access code 2710 | -10/Exiles | Opened EX-Vault 2758 | -10/Exiles | Warned to stay clear of 0b10 Research branches 2809 | -10/Exiles | Met EX-DEC 2834 | -10/Exiles | Learned location of Zion (-6) 3118 | -10/Exiles | Found Superbattery 3134 | -10/Exiles | Found AWS/Thermal 3143 | -10/Exiles | Found Deploy-a-Sentry 3145 | -10/Exiles | Found Deploy-a-Sentry 3150 | -10/Exiles | Found Deploy-a-Sentry 3305 | -10/Exiles | Discovered new exit (range 12) 3324 | -10/Exiles | Stole three prototypes: Superbattery, AWS/Thermal, Deploy-a-Sentry 3324 | -10/Exiles | Entered Mines 3324 | -9/Mines | Accompanied by 2 allies 3508 | -9/Mines | Assembled infested the area 3565 | -9/Mines | Destroyed 9 combat bots 3892 | -9/Mines | Found a damaged Exp. Sensor Array with a note attached 3896 | -9/Mines | Found Prototype Device 4036 | -9/Mines | A weapon hastily lodged in a ceiling crevice suddenly fell to the ground 4203 | -9/Mines | Discovered new exit (range 6) 4220 | -9/Mines | Entered Materials 4220 | -8/Materials | Accompanied by 3 allies 4220 | -8/Materials | Evolved 4 slots: Propulsion x1, Utility x3 4220 | -8/Materials | Identified Exp. Sensor Array 4225 | -8/Materials | Led the pair of lost Derelicts to an unsafe place 4556 | -8/Materials | Build established: Scavenger-Mutant 4636 | -8/Materials | Discovered new exit (range 5) 4714 | -8/Materials | Entered Factory 4714 | -7/Factory | Evolved 2 slots: Propulsion x1, Utility x1 4716 | -7/Factory | FarCom data flow suspended 5071 | -7/Factory | Build established: Hacker-Mutant 5416 | -7/Factory | Repaired Cld. Particle Cannon? 5586 | -7/Factory | Repaired Rocket Launcher 6353 | -7/Factory | Identified exit to Lower Caves 6567 | -7/Factory | Build established: Mutant 6865 | -7/Factory | Destroyed 7 combat bots 6988 | -7/Factory | Entered Lower Caves 7458 | -7/Lower Caves | Attracted the attention of an 0b10 checkpoint 7642 | -7/Lower Caves | Encountered a Warlord checkpoint 8131 | -7/Lower Caves | Discovered new exit (range 7) 8134 | -7/Lower Caves | Ambushed by research squad 8139 | -7/Lower Caves | Identified exit to Lower Caves 8141 | -7/Lower Caves | Entered another Lower Caves area 8152 | -7/Lower Caves | Discovered new exit (range 15) 8216 | -7/Lower Caves | Encountered a Warlord checkpoint 8554 | -7/Lower Caves | Identified exit to Data Miner 8796 | -7/Lower Caves | Entered a destroyed Warlord outpost 8960 | -7/Lower Caves | Encountered a Master Thief 8962 | -7/Lower Caves | Deploy-a-Sentry stolen by Master Thief 8963 | -7/Lower Caves | Encountered a Master Thief 8964 | -7/Lower Caves | Encountered a Master Thief 8964 | -7/Lower Caves | Deploy-a-Sentry stolen by Master Thief 8965 | -7/Lower Caves | Encountered a Master Thief 8968 | -7/Lower Caves | Deploy-a-Sentry stolen by Master Thief 8969 | -7/Lower Caves | Neutrino Core stolen by Master Thief 9016 | -7/Lower Caves | Entered Data Miner 9016 | -7/Data Miner | Discovered new exit (range 6) 9053 | -7/Data Miner | Met Data Miner 9085 | -7/Data Miner | Learned location of Section 7 (-2) 9085 | -7/Data Miner | Acquired the access code to Warlord's prototype stash 9125 | -7/Data Miner | Received God Mode back door access code from Data Miner 9167 | -7/Data Miner | Entered Proximity Caves 9504 | -6/Proximity Caves | Learned Factory non-interactive machine intel 9898 | -6/Proximity Caves | Attracted the attention of an 0b10 checkpoint 9931 | -6/Proximity Caves | Discovered new exit (range 7) 10006 | -6/Proximity Caves | Unaware initiated a cargo recovery operation 10058 | -6/Proximity Caves | System corruption reached 10% 10069 | -6/Proximity Caves | Core integrity fell below 50% 10093 | -6/Proximity Caves | Lost 9 parts (1p3n2u3w) 10773 | -6/Proximity Caves | Build established: Scavenger-Mutant 10810 | -6/Proximity Caves | Found Prototype Device 10810 | -6/Proximity Caves | Identified Exp. Thermal Defense Suite 11027 | -6/Proximity Caves | Identified exit to Factory 11031 | -6/Proximity Caves | Entered Factory 11031 | -6/Factory | Evolved 2 slots: Utility x2 11032 | -6/Factory | Loaded intel: 205 non-interactive machine locations 11050 | -6/Factory | Found Unknown Protection 11050 | -6/Factory | Identified Hvy. Reflective Plating 11134 | -6/Factory | Fabricated Adv. Weapon Cycler? 11426 | -6/Factory | Build established: Skirmisher 12340 | -6/Factory | Discovered new exit (range 14) 12468 | -6/Factory | Identified exit to Factory 12469 | -6/Factory | Entered another Factory area 12469 | -5/Factory | Evolved 2 slots: Power x1, Utility x1 12777 | -5/Factory | Discovered new exit (range 11) 12788 | -5/Factory | Identified exit to Factory 13176 | -5/Factory | Discovered exit to Factory (range 13) 13200 | -5/Factory | Identified exit to Upper Caves 13200 | -5/Factory | Identified exit to Extension 13322 | -5/Factory | Build established: Mutant 13463 | -5/Factory | Found Prototype Launcher 13463 | -5/Factory | Identified Tesla Bomb Launcher 13474 | -5/Factory | Found Tesla Bomb Launcher 13817 | -5/Factory | Entered Extension 13893 | -5/Extension | Rescued A7 14018 | -5/Extension | Rescued a captive Derelict 14019 | -5/Extension | Rescued a captive Derelict 14169 | -5/Extension | Rescued a captive Derelict 14223 | -5/Extension | Rescued a captive Derelict 14237 | -5/Extension | Rescued a captive Derelict 14509 | -5/Extension | Spotted B-75 Beast 14517 | -5/Extension | Allies destroyed B-75 Beast 14533 | -5/Extension | Spotted B-75 Beast 14548 | -5/Extension | Allies destroyed B-75 Beast 14680 | -5/Extension | Rescued a captive Derelict 14680 | -5/Extension | Rescued a captive Derelict 14760 | -5/Extension | Rescued a captive Derelict 14841 | -5/Extension | Lost 3 allies 15167 | -5/Extension | Build established: Commander-Mutant 15252 | -5/Extension | Discovered exit to Factory (range 10) 15255 | -5/Extension | Discovered new exit (range 6) 15280 | -5/Extension | Identified exit to Cetus 15364 | -5/Extension | Entered Cetus 15364 | -5/Cetus | Accompanied by 13 allies (A7) 15369 | -5/Cetus | Acquired a Cetus Manufacturing Module code from A7 15387 | -5/Cetus | Spotted Cetus Guard 15388 | -5/Cetus | Spotted Cetus Guard 15392 | -5/Cetus | Spotted Cetus Guard 15396 | -5/Cetus | Spotted Cetus Guard 15400 | -5/Cetus | Destroyed Cetus Guard 15402 | -5/Cetus | Destroyed Cetus Guard 15402 | -5/Cetus | Destroyed Cetus Guard 15412 | -5/Cetus | Allies destroyed Cetus Guard 15431 | -5/Cetus | Lost 4 allies 15480 | -5/Cetus | Started Cetus Manufacturing Module 15505 | -5/Cetus | Manufactured an Enhanced Grunt 15521 | -5/Cetus | Escorted A7 to Cetus Mainframe 15530 | -5/Cetus | Manufactured an Enhanced Grunt 15547 | -5/Cetus | Discovered new exit (range 15) 15555 | -5/Cetus | Manufactured an Enhanced Grunt 15577 | -5/Cetus | Spotted Cetus Guard 15577 | -5/Cetus | Spotted Cetus Guard 15580 | -5/Cetus | Manufactured an Enhanced Grunt 15581 | -5/Cetus | Allies destroyed Cetus Guard 15581 | -5/Cetus | Spotted Cetus Guard 15581 | -5/Cetus | Spotted Cetus Guard 15583 | -5/Cetus | Destroyed Cetus Guard 15583 | -5/Cetus | Destroyed Cetus Guard 15584 | -5/Cetus | Destroyed Cetus Guard 15596 | -5/Cetus | Discovered exit to Factory (range 15) 15605 | -5/Cetus | Manufactured an Enhanced Grunt 15605 | -5/Cetus | Met Revision 17 15625 | -5/Cetus | System corruption reached 10% 15924 | -5/Cetus | Identified exit to Archives 16088 | -5/Cetus | Entered Archives 16088 | -5/Archives | Accompanied by 14 allies (A7) 16093 | -5/Archives | Received a hacking code to weaken MAIN.C 16149 | -5/Archives | Discovered new exit (range 15) 16175 | -5/Archives | Identified exit to Hub_04(d) 16281 | -5/Archives | Discovered exit to Factory (range 14) 16313 | -5/Archives | Discovered exit to Hub_04(d) (range 15) 16713 | -5/Archives | Entered Hub_04(d) 16713 | -5/Hub_04(d) | Accompanied by 11 allies 16762 | -5/Hub_04(d) | Network Hub disabled 16793 | -5/Hub_04(d) | Spotted Lightning 16800 | -5/Hub_04(d) | Spotted Lightning 16809 | -5/Hub_04(d) | Spotted Lightning 16811 | -5/Hub_04(d) | Allies destroyed Lightning 16814 | -5/Hub_04(d) | Allies destroyed Lightning 16822 | -5/Hub_04(d) | Allies destroyed Lightning 16851 | -5/Hub_04(d) | Lost 6 allies 16864 | -5/Hub_04(d) | Spotted B-75 Beast 16881 | -5/Hub_04(d) | Found Prototype Device 16881 | -5/Hub_04(d) | Identified Exp. Thermal Shield 16891 | -5/Hub_04(d) | Destroyed B-75 Beast 16908 | -5/Hub_04(d) | Lost 3 allies 16921 | -5/Hub_04(d) | Network Hub disabled 16947 | -5/Hub_04(d) | AWS/Thermal suddenly broke down 17084 | -5/Hub_04(d) | Build established: Scavenger-Mutant 17342 | -5/Hub_04(d) | Entered Factory 17342 | -4/Factory | Evolved 2 slots: Propulsion x1, Weapon x1 17647 | -4/Factory | Build established: Scavenger-Tank 17782 | -4/Factory | Sucked down chute 17782 | -4/Factory | Entered Waste 17797 | -4/Waste | EMP discharged 17816 | -4/Waste | Met Warlord forces unprepared to attack 17833 | -4/Waste | Spotted C-40 Crusher 17843 | -4/Waste | Allies destroyed C-40 Crusher 17858 | -4/Waste | Spotted C-40 Crusher 17861 | -4/Waste | Allies destroyed C-40 Crusher 17866 | -4/Waste | Spotted C-40 Crusher 17868 | -4/Waste | Spotted C-40 Crusher 17871 | -4/Waste | Destroyed C-40 Crusher 17878 | -4/Waste | Allies destroyed C-40 Crusher 17881 | -4/Waste | Found Unknown Protection 17881 | -4/Waste | Identified Damper Plating 17896 | -4/Waste | Spotted C-40 Crusher 17897 | -4/Waste | EMP discharged 17905 | -4/Waste | Allies destroyed C-40 Crusher 17933 | -4/Waste | Lost 3 allies 17990 | -4/Waste | Discovered new exit (range 10) 17997 | -4/Waste | EMP discharged 18005 | -4/Waste | Identified exit to Factory 18018 | -4/Waste | Spotted C-40 Crusher 18018 | -4/Waste | Entered Factory 18018 | -4/Factory | Accompanied by 13 allies 18203 | -4/Factory | Fabricated G-67 Veteran (x3) 18308 | -4/Factory | Garrison activated, responded to threat 18442 | -4/Factory | Lost 4 allies 18518 | -4/Factory | First assault squad dispatched 18523 | -4/Factory | Lost 3 allies 18676 | -4/Factory | Fabricated Enh. Nova Cannon (x2) 18689 | -4/Factory | Discovered new exit (range 10) 18700 | -4/Factory | Identified exit to Research 18767 | -4/Factory | Entered Research 18767 | -3/Research | Evolved 2 slots: Utility x2 18967 | -3/Research | Revision forces began assault on 0b10 18969 | -3/Research | AWS/Thermal suddenly broke down 18997 | -3/Research | Met up with Revision 17++ 19220 | -3/Research | Repaired Centrium Leg 19240 | -3/Research | Local machine network offline 19337 | -3/Research | Discovered new exit (range 16) 19369 | -3/Research | Identified exit to Armory 19390 | -3/Research | Spotted B-86 Titan 19414 | -3/Research | Lost 3 allies 19467 | -3/Research | Research terminal network offline 19666 | -3/Research | Discovered new exit (range 15) 19739 | -3/Research | Identified exit to Research 19741 | -3/Research | Entered another Research area 19741 | -2/Research | Evolved 2 slots: Propulsion x1, Weapon x1 19746 | -2/Research | Lost 7 allies 19955 | -2/Research | Garrison activated, responded to threat 19957 | -2/Research | AWS/Thermal suddenly broke down 20223 | -2/Research | System corruption reached 10% 20258 | -2/Research | Lost 4 parts (1p1n2u) 20502 | -2/Research | Found Prototype Processor 20502 | -2/Research | Identified Exp. Signal Interpreter 20614 | -2/Research | Destroyed 12 combat bots 20648 | -2/Research | Core integrity fell below 50% 20651 | -2/Research | Found Exp. Signal Interpreter 20661 | -2/Research | Lost 24 parts (3p4n9u8w) 20713 | -2/Research | System corruption reached 30% 20794 | -2/Research | Found Prototype Processor 20794 | -2/Research | Identified Exp. Target Analyzer 20801 | -2/Research | Found Faulty Exp. Target Analyzer 20822 | -2/Research | Build established: Scavenger-Gunner 20855 | -2/Research | Lost 7 parts (2p3n1u1w) 20898 | -2/Research | Self-destructed Last Messages --------------- 20868_ Chain reaction triggered in Corrupted Lgt. Ion Engine. 20869_ U-05 Engineer lays Concrete. 20870_ R-10 Processor collects Lgt. Ion Engine. 20870_ K-01 Serf collects debris. 20870_ U-05 Engineer lays Concrete. 20871_ K-01 Serf collects debris. 20871_ U-05 Engineer builds a Wall. 20872_ System corrupted: IFF burst signal emitted. 20875_ K-01 Serf collects debris. 20878_ The unstable cave ceiling collapses. 20878_ K-01 Serf collects debris. 20881_ The unstable cave ceiling collapses. 20881_ K-01 Serf collects debris. 20885_ ALERT: Potential suspicious activity detected, Programmers report to Research Zone 5J. 20887_ ZEBQFK:A ACHXWY| 9QR/5:2NDG: 20896_ Quantum Rifle destroyed. 20896_ Destroyed Quantum Rifle. 20896_ Tiamat Missile Launcher destroyed. 20896_ Destroyed Tiamat Missile Launcher. Map ----- +----------------------------------------------------+ | ?????????????????????????????????????????????????? | | ?????????????????????????????????????????????????? | | ?????????????????????????????????????????????????? | | ?????????????????????????????????????????????????? | | ?????????????????????????????????????????????????? | | ?????????????????????????????????????????????????? | | #######??????????????????????????????????????????? | | *! #??????????????????????????????????????????? | | ! * #??????????????????????????????????????????? | | ! * #??????????????????????????????????????????? | | #??????????????????????????????????????????? | | #??????????????????????????????????????????? | | %#?????????????????????????????????????????? | | ###+####?????????????????????????????????????????? | | # #????????????????????????????????????????????? | | # #????????????????????????????????????????????? | | ""# ###############??????????????????????????????? | | ""# ## #??????????????????????????????? | | ""# ## #??????????????????????????????? | | # ## """" #??????????????????????????????? | | # + ""S"" #??????????????????????????????? | | # # "" "" #??????????????????????????????? | | ### # #??????????????????????????????? | | + #?????#####????????????????????? | | # """"" ##### # ##???????????????????? | | + """"" ## @ #???????????????????? | | # """"" ## #??????????????????? | | # ## #??????????????????? | | # [ ## #??????????????????? | | %############### #??????????????????? | | # #??????????????????? | | % # ##??????????????????? | | % #x ##???????????????????? | | % % % x #????????????????????? | | ###########+### ##########??####??????????????? | | # # #??????????? ???????????????? | | = # # #?????????? ???????????????? | | # # #????????? ???????????????? | | # """ # #????????? #??????????? | | # """ # #????????? ""Y"" #??????????? | | # """ # #????????? """"" #??????????? | | " # # #????????? ###????????? | | " # # #?????####] #????????? | | Y # # ####### # # ###??????? | | " ########## = % % % ??????? | | " #???????# !![=! ?????? | | #???????# = =% % % ?????? | | #?####### = %= %% ?????? | | ######? =! ######### ?????? | | # # = # ????## # ! #??????? | +----------------------------------------------------+ Best States ------------- Heat Dissipation 99 Coolant Potential 65 Energy Generation 45 Energy Capacity 1740 Matter Stores 300 Matter Capacity 800 Sight Range 22 Robot Scan Range 20 Terrain Scan Density 10 EM Shielding 3 Corruption Containment 12 Corruption Block 8 Armor Coverage 1600 Resistance: KI 30 Resistance: TH 30 Resistance: EM 90 Utility Shielding 66 Weapon Cycling 25 Evasion (%) 55 Targeting Accuracy 8 Core Analysis 6 Particle Charging 20 Offensive Hacking 12 Defensive Hacking 12 Item Schematics ----------------- Hcp. Storage Unit | -10/Materials | Hacked Flexi-carbon Leg | -5/Factory | Scanalyzed Enh. Biometal Leg | -4/Factory | Scanalyzed Centrium Medium Armor Plating | -3/Research | Scanalyzed Robot Schematics ------------------ Y-54 Guardian | -7/Factory | Hacked L-41 Fighter | -7/Data Miner | Free A-15 Conveyor | -7/Data Miner | Free M-28 Smith | -7/Data Miner | Free R-10 Processor | -7/Data Miner | Free O-24 Administrator | -7/Data Miner | Free B-60 Warrior | -7/Data Miner | Free Fabricated ------------ Adv. Weapon Cycler | x2 | -6/Factory | Preloaded G-67 Veteran | x3 | -4/Factory | Preloaded Enh. Nova Cannon | x2 | -4/Factory | Preloaded Repaired ---------- Cld. Particle Cannon | 33% | -7/Factory Rocket Launcher | 31% | -7/Factory Centrium Leg | 62% | -3/Research Studied --------- Flexi-carbon Leg | -5/Factory | Hacked Alien Tech Used ----------------- None Achievements -------------- None Challenges ------------ None Game ------ Seed BladeInertialShell Manual? 0 Play Time 03:45:01 Cumulative 289.7 hours Start 2025.11.18 @ 06:36:37 End 2025.11.18 @ 11:10:11 Sessions 1 Manual Loads 0 Difficulty Rogue Special Mode None Game No. 308 Rogue 304 Adventurer 3 Explorer 1 Win Type - Total 1 Types 1/0/0/0/0/0/0/0/0/0 Lore% 78 Gallery% 76 Achievement% 61 Wizard Run 0 Options --------- Layout 0 ASCII 0 Keyboard 0 Movement Mouse Keybinds 0 Fullscreen 2 Font 18/SmallcapsGlow Map View 76x50 Zoom Use 0% Tactical HUD 1 Map Filters NONE Filters NONE Steam 1 RUN: 5069bd4d-37f4-42fa-93b6-ea56e5ba695b